bitfinex-derivatives/quotes_SOLF0:USTF0_20250321
["timestamp","ask_amount","ask_price","bid_price","bid_amount"]
[1742523096638,7.7709,128.76,128.74,12.55702087]
[1742523097939,7.7709,128.76,128.74,20.32902087]
[1742523098136,35.08627197,128.77,128.74,12.55702087]
[1742523098437,7.82627197,128.77,128.75,12.50604128]
[1742523098738,0.05567197,128.77,128.76,12.50604128]
[1742523099430,0.05567197,128.77,128.76,20.27684128]
[1742523099834,0.05567197,128.77,128.76,12.50604128]
[1742523100434,0.05567197,128.77,128.76,20.27684128]
[1742523101233,12.50604128,128.84,128.76,12.50604128]
[1742523101429,27.26,128.83,128.8,12.50604128]
[1742523101739,27.26,128.83,128.8,20.27414128]
[1742523102037,35.0271,128.83,128.8,20.27414128]
[1742523102442,35.08530229,128.83,128.8,20.32887405]
[1742523102835,7.7672,128.82,128.8,20.32887405]
[1742523103142,7.7672,128.82,128.8,12.56077405]
[1742523103829,7.7672,128.82,128.8,20.32887405]
[1742523104026,35.08510229,128.83,128.8,20.32887405]
[1742523104234,27.31820229,128.83,128.8,20.32887405]
[1742523105441,7.7673,128.82,128.8,20.32887405]
[1742523106643,7.7673,128.82,128.8,12.56077405]
[1742523107251,7.7673,128.82,128.8,0.05473277]
[1742523107943,7.7678,128.81,128.8,0.05473277]
[1742523109340,35.0275,128.82,128.8,0.05473277]
[1742523109537,35.0275,128.82,128.8,7.82303277]
[1742523109740,35.0275,128.82,128.8,0.05473277]
[1742523110751,7.7675,128.82,128.8,0.05473277]
[1742523111051,7.7675,128.82,128.8,7.82303277]
[1742523111851,7.7675,128.82,128.8,0.05473277]
[1742523112051,7.82510229,128.83,128.8,12.56077405]
[1742523112349,0.05820229,128.83,128.82,12.50604128]
[1742523113344,7.82480229,128.83,128.82,12.50604128]
[1742523114354,0.05820229,128.83,128.82,12.50604128]
[1742523115150,7.82480229,128.83,128.82,12.50604128]
[1742523115353,0.05820229,128.83,128.81,12.50604128]
[1742523116048,7.7672,128.82,128.81,12.50604128]
[1742523116451,7.7672,128.82,128.8,27.31473277]
[1742523116452,7.7672,128.82,128.8,39.82077405]
[1742523116848,7.7678,128.81,128.8,39.82077405]
[1742523117049,7.7678,128.81,128.8,12.56077405]
[1742523118449,7.7678,128.81,128.8,0.05473277]
[1742523119657,20.27384128,128.81,128.8,0.05473277]
[1742523120151,20.27384128,128.81,128.75,13.8171]
[1742523120152,12.50604128,128.81,128.75,12.50604128]
[1742523120451,39.76604128,128.8,128.75,12.50604128]
[1742523120654,27.26,128.79,128.76,12.50604128]
[1742523120856,35.0287,128.8,128.76,12.50604128]
[1742523121348,7.82048263,128.79,128.77,12.55838294]
[1742523122042,0.05138263,128.79,128.77,12.55838294]
[1742523122253,0.05138263,128.79,128.77,0.05234166]
[1742523123654,0.05138263,128.79,128.77,7.82254166]
[1742523124750,0.05138263,128.79,128.77,12.55838294]
[1742523124955,0.05138263,128.79,128.78,20.27564128]
[1742523126452,27.26,128.82,128.81,7.7678]
[1742523126653,27.26,128.84,128.81,12.50604128]
[1742523127344,35.0264,128.84,128.81,20.27354128]
[1742523127858,35.07998439,128.84,128.81,20.32438819]
[1742523128158,7.7668,128.83,128.81,20.32438819]
[1742523128454,27.31358439,128.84,128.82,7.7672]
[1742523128852,0.05358439,128.84,128.82,7.7672]
[1742523129050,35.07998439,128.84,128.82,7.7672]
[1742523129255,35.07998439,128.84,128.81,20.32448819]
[1742523129553,27.31358439,128.84,128.81,7.81844691]
[1742523130548,7.7667,128.83,128.81,7.81844691]
[1742523131443,35.07988439,128.84,128.81,7.81844691]
[1742523131849,27.31358439,128.84,128.81,7.81844691]
[1742523132146,7.7672,128.82,128.81,0.05084691]
[1742523133866,27.31358439,128.84,128.81,12.55688819]
[1742523134152,0.05358439,128.84,128.82,12.50604128]
[1742523134355,0.05358439,128.84,128.82,20.27284128]
[1742523134553,0.05358439,128.84,128.83,12.50604128]
[1742523134954,0.05358439,128.84,128.83,20.27264128]
[1742523135152,0.05358439,128.84,128.83,12.50604128]
[1742523135351,7.7669,128.83,128.81,20.32468819]
[1742523135654,0.05358439,128.84,128.81,20.32468819]
[1742523136553,0.05358439,128.84,128.82,12.50604128]
[1742523137058,0.05358439,128.84,128.83,12.50604128]
[1742523137263,0.05358439,128.84,128.82,12.50604128]
[1742523137963,7.81988439,128.84,128.82,12.50604128]
[1742523138361,0.05358439,128.84,128.82,12.50604128]
[1742523138968,0.05358439,128.84,128.82,20.27284128]
[1742523139161,0.05358439,128.84,128.83,12.50604128]
[1742523139561,0.05358439,128.84,128.83,20.27264128]
[1742523139963,7.7645,128.87,128.83,40.00604128]
[1742523140165,4.2162,128.89,128.85,12.50604128]
[1742523140465,12.50604128,128.91,128.86,12.50604128]
[1742523140669,27.48,128.9,128.86,12.50604128]
[1742523141057,7.7633,128.89,128.87,0.05708113]
[1742523141267,7.82232052,128.89,128.87,0.05708113]
[1742523141760,0.05902052,128.89,128.87,7.82128113]
[1742523141960,0.05902052,128.89,128.87,12.56312241]
[1742523142363,7.82232052,128.89,128.87,12.56312241]
[1742523142568,0.05902052,128.89,128.87,12.56312241]
[1742523143368,7.7636,128.88,128.87,12.56312241]
[1742523144467,0.05902052,128.89,128.87,20.32722241]
[1742523144660,0.05902052,128.89,128.87,12.56312241]
[1742523145367,7.7636,128.88,128.87,12.56312241]
[1742523145565,7.7636,128.88,128.87,0.05708113]
[1742523146571,47.78964128,128.88,128.87,0.05708113]
[1742523146770,35.2836,128.88,128.87,0.05708113]
[1742523148170,7.7636,128.88,128.87,0.05708113]
[1742523150366,20.26964128,128.88,128.87,0.05708113]
[1742523151464,7.766,128.84,128.83,12.50604128]
[1742523152865,7.7666,128.83,128.82,0.05963485]
[1742523153873,7.7666,128.83,128.82,12.56567613]
[1742523159573,7.7666,128.83,128.82,0.05963485]
[1742523159786,7.7666,128.83,128.82,12.56567613]
[1742523159966,7.7663,128.84,128.82,12.56567613]
[1742523160374,0.05593651,128.85,128.83,12.50604128]
[1742523160971,0.05593651,128.85,128.83,20.27234128]
[1742523161175,0.05593651,128.85,128.84,12.50604128]
[1742523161367,40.02604128,128.89,128.84,12.50604128]
[1742523161877,7.7653,128.86,128.84,12.50604128]
[1742523162066,40.02604128,128.89,128.84,12.50604128]
[1742523162267,7.764,128.88,128.85,20.27114128]
[1742523162469,7.81543622,128.88,128.85,20.32732147]
[1742523162671,7.81543622,128.88,128.86,12.50604128]
[1742523164274,0.05143622,128.88,128.86,20.27064128]
[1742523165272,7.81503622,128.88,128.86,20.27064128]
[1742523166174,2.1063,128.93,128.87,40.02604128]
[1742523166478,27.52,128.93,128.9,12.50604128]
[1742523166674,7.7615,128.92,128.9,12.50604128]
[1742523166873,7.7615,128.92,128.89,12.50604128]
[1742523167285,7.7619,128.91,128.89,12.50604128]
[1742523167477,7.7619,128.91,128.89,12.55827114]
[1742523169583,7.7624,128.9,128.89,12.55827114]
[1742523170780,7.7624,128.9,128.89,0.05222986]
[1742523173185,7.7642,128.87,128.86,256.22]
[1742523173386,27.5,128.91,128.78,60.70508233]
[1742523173387,40.02604128,128.88,128.84,12.50604128]
[1742523173682,40.02604128,128.88,128.83,40.00604128]
[1742523173875,7.7654,128.85,128.83,40.00604128]
[1742523174075,40.02604128,128.88,128.83,47.77264128]
[1742523177181,7.7672,128.82,128.81,256.16]
[1742523177988,7.7669,128.83,128.81,256.16]
[1742523178187,0.05750903,128.83,128.81,268.66604128]
[1742523178484,7.7672,128.82,128.81,256.16]
[1742523178687,12.56355031,128.83,128.8,0.0532285]
[1742523179590,12.50604128,128.82,128.8,0.0532285]
[1742523180190,7.7678,128.81,128.8,0.0532285]
[1742523185196,27.54,128.82,128.8,12.55926978]
[1742523185387,0.05750903,128.83,128.81,12.50604128]
[1742523185583,0.05750903,128.83,128.82,12.50604128]
[1742523186601,7.82410903,128.83,128.82,12.50604128]
[1742523188001,7.82410903,128.83,128.81,7.7677]
[1742523188296,7.82410903,128.83,128.81,20.27374128]
[1742523189400,0.05750903,128.83,128.81,20.27374128]
[1742523191100,0.05750903,128.83,128.82,20.27324128]
[1742523193005,0.05750903,128.83,128.82,12.50604128]
[1742523194401,7.82410903,128.83,128.82,12.50604128]
[1742523196002,7.7676,128.82,128.81,12.50604128]
[1742523199096,7.7676,128.82,128.8,20.32756978]
[1742523199292,7.7676,128.82,128.8,12.55926978]
[1742523199795,7.7678,128.81,128.8,0.0532285]
[1742523207209,20.27384128,128.81,128.8,0.0532285]
[1742523208112,7.7678,128.81,128.8,0.0532285]
[1742523216731,20.27384128,128.81,128.8,0.0532285]
[1742523218337,20.27384128,128.81,128.8,2.85e-05]
[1742523218532,22.33084128,128.81,128.8,2.85e-05]
[1742523229048,22.32304128,128.81,128.71,256.32]
[1742523229249,12.50604128,128.75,128.71,256.32]
[1742523229451,39.90604128,128.75,128.71,256.32]
[1742523230046,7.82620968,128.74,128.72,0.05167507]
[1742523230551,0.05380968,128.74,128.72,0.05167507]
[1742523231452,7.7727,128.73,128.72,0.05167507]
[1742523232251,7.82620968,128.74,128.72,0.05167507]
[1742523232755,0.05380968,128.74,128.72,0.05167507]
[1742523236352,0.05380968,128.74,128.72,7.82487507]
[1742523236658,0.05380968,128.74,128.72,0.05167507]
[1742523236857,7.82620968,128.74,128.72,0.05167507]
[1742523237055,0.05380968,128.74,128.72,12.55771635]
[1742523237253,0.05380968,128.74,128.73,12.50604128]
[1742523238456,0.05380968,128.74,128.73,20.27874128]
[1742523242059,0.05380968,128.74,128.73,47.71874128]
[1742523244458,12.50604128,128.81,128.77,7.7699]
[1742523244662,39.94604128,128.81,128.77,7.7699]
[1742523244861,7.7689,128.8,128.77,7.7699]
[1742523245165,39.94604128,128.81,128.77,7.7699]
[1742523245555,7.7693,128.79,128.78,0.05384922]
[1742523262286,20.27534128,128.79,128.78,0.05384922]
[1742523263278,7.7693,128.79,128.78,0.05384922]
[1742523264075,0.04969487,128.8,128.78,12.5598905]
[1742523264280,0.04969487,128.8,128.78,20.3292905]
[1742523264477,7.81809487,128.8,128.78,20.3292905]
[1742523266289,7.769,128.79,128.78,12.5598905]
[1742523266483,7.769,128.79,128.78,0.05384922]
[1742523270287,7.81839487,128.8,128.78,0.05384922]
[1742523271790,7.81839487,128.8,128.78,7.82344922]
[1742523272791,7.81839487,128.8,128.78,0.05384922]
[1742523273392,7.769,128.79,128.78,0.05384922]
[1742523286796,20.27504128,128.79,128.78,0.05384922]
[1742523287907,7.7721,128.74,128.73,12.50604128]
[1742523288111,27.28,128.77,128.73,12.50604128]
[1742523288811,27.28,128.77,128.73,20.27864128]
[1742523288997,0.05679088,128.76,128.74,0.05229732]
[1742523289711,7.7717,128.75,128.74,0.05229732]
[1742523297012,7.7717,128.75,128.71,12.50604128]
[1742523297013,20.26604128,128.75,128.67,268.90604128]
[1742523297316,12.50604128,128.71,128.67,12.50604128]
[1742523297617,7.7757,128.68,128.67,12.50604128]
[1742523299314,7.82542582,128.69,128.67,12.50604128]
[1742523300307,7.7757,128.68,128.67,12.50604128]
[1742523300714,7.82552582,128.69,128.67,12.50604128]
[1742523301417,7.7759,128.68,128.66,12.56481828]
[1742523301719,0.05012582,128.69,128.66,0.058777]
[1742523302120,7.7763,128.67,128.66,0.058777]
[1742523302516,0.05012582,128.69,128.66,0.058777]
[1742523303127,7.776,128.68,128.66,0.058777]
[1742523304215,7.776,128.68,128.66,12.56481828]
[1742523306527,7.82542582,128.69,128.66,12.56481828]
[1742523307325,0.05012582,128.69,128.67,12.50604128]
[1742523308823,7.82522582,128.69,128.67,12.50604128]
[1742523309527,7.7757,128.68,128.66,39.86481828]
[1742523309725,0.05012582,128.69,128.66,12.56481828]
[1742523309924,12.5561671,128.69,128.66,0.058777]
[1742523310320,7.7763,128.67,128.66,0.058777]
[1742523313729,7.776,128.68,128.66,0.058777]
[1742523313931,0.05012582,128.69,128.66,0.058777]
[1742523314429,7.7763,128.67,128.66,0.058777]
[1742523319626,7.7787,128.63,128.62,11.27987267]
[1742523320433,7.7787,128.63,128.61,11.27987267]
[1742523320635,7.7787,128.63,128.6,7.7803]
[1742523320830,0.0540463,128.63,128.61,0.0517903]
[1742523323035,7.8331463,128.63,128.61,0.0517903]
[1742523323235,0.0540463,128.63,128.61,0.0517903]
[1742523323636,0.0540463,128.63,128.61,7.8313903]
[1742523324037,0.0540463,128.63,128.61,0.0517903]
[1742523325044,7.8331463,128.63,128.61,0.0517903]
[1742523325653,11.33391897,128.63,128.61,0.0517903]
[1742523326551,7.7793,128.62,128.61,0.0517903]
[1742523326752,19.05917267,128.62,128.61,0.0517903]
[1742523327651,7.7793,128.62,128.61,0.0517903]
[1742523328350,19.05917267,128.62,128.61,0.0517903]
[1742523329048,46.35917267,128.62,128.61,0.0517903]
[1742523330357,46.35917267,128.62,128.61,9.03e-05]
[1742523333451,15.5603,128.61,128.48,85.01393523]
[1742523333646,15.5603,128.61,128.49,53.78684028]
[1742523333647,11.27987267,128.54,128.49,53.78684028]
[1742523333851,11.27987267,128.52,128.49,42.50696761]
[1742523334252,19.06527267,128.52,128.49,42.50696761]
[1742523334452,27.34,128.51,128.49,42.50696761]
[1742523334749,27.34,128.51,128.49,42.5634402]
[1742523334954,0.05715309,128.52,128.5,11.27987267]
[1742523337145,7.84255309,128.52,128.49,11.33634526]
[1742523340256,0.05715309,128.52,128.49,0.05647259]
[1742523340757,7.786,128.51,128.49,0.05647259]
[1742523341360,7.7866,128.5,128.49,0.05647259]
[1742523342158,19.06647267,128.5,128.49,0.05647259]
[1742523343952,7.7896,128.45,128.44,27.44]
[1742523344156,6.1673,128.53,128.42,11.27987267]
[1742523344157,11.27987267,128.47,128.42,11.27987267]
[1742523344356,38.71987267,128.47,128.42,11.27987267]
[1742523344552,7.7901,128.45,128.42,11.27987267]
[1742523344757,38.71987267,128.47,128.42,11.27987267]
[1742523345266,7.79,128.45,128.43,0.04955645]
[1742523346466,7.8386019,128.46,128.43,0.04955645]
[1742523351967,7.8386019,128.46,128.43,11.36860851]
[1742523352468,0.0493019,128.46,128.43,19.15930851]
[1742523352665,0.0493019,128.46,128.45,11.31905206]
[1742523353562,0.0493019,128.46,128.45,19.10865206]
[1742523357071,0.0493019,128.46,128.44,46.56895206]
[1742523357771,7.7896,128.45,128.44,27.46]
[1742523357967,7.7896,128.45,128.43,0.04955645]
[1742523358771,7.7902,128.44,128.43,0.04955645]
[1742523360571,35.2502,128.44,128.43,0.04955645]
[1742523362464,27.46,128.44,128.43,0.04955645]
[1742523363472,35.2502,128.44,128.43,0.04955645]
[1742523365170,7.7896,128.45,128.43,0.04955645]
[1742523365473,27.5293019,128.46,128.43,0.04955645]
[1742523365775,7.7897,128.45,128.43,0.04955645]
[1742523366274,35.3186019,128.46,128.43,7.84035645]
[1742523366476,35.3186019,128.46,128.43,0.04955645]
[1742523366777,35.3186019,128.46,128.43,7.83985645]
[1742523366978,0.0493019,128.46,128.43,11.36860851]
[1742523367369,0.0493019,128.46,128.44,7.7897]
[1742523367570,7.8384019,128.46,128.44,7.7897]
[1742523368577,7.8384019,128.46,128.43,19.15910851]
[1742523368779,7.7897,128.45,128.43,7.84005645]
[1742523369073,7.7897,128.45,128.43,0.04955645]
[1742523369781,7.7902,128.44,128.43,0.04955645]
[1742523370074,38.84835396,128.46,128.43,0.04955645]
[1742523370277,7.7899,128.45,128.43,0.04955645]
[1742523371175,0.0493019,128.46,128.43,0.04955645]
[1742523371672,7.8386019,128.46,128.43,7.83995645]
[1742523372670,7.7898,128.45,128.43,19.15900851]
[1742523374278,7.8386019,128.46,128.43,19.15900851]
[1742523374472,0.0493019,128.46,128.43,7.83995645]
[1742523374778,7.8386019,128.46,128.44,7.7902]
[1742523375973,0.0493019,128.46,128.44,7.7902]
[1742523376282,0.0493019,128.46,128.43,0.04955645]
[1742523376283,0.0493019,128.46,128.45,7.7896]
[1742523377177,0.0493019,128.46,128.43,11.36860851]
[1742523377682,7.79,128.45,128.43,0.04955645]
[1742523377883,11.31905206,128.45,128.43,0.04955645]
[1742523378176,7.7902,128.44,128.43,0.04955645]
[1742523378882,19.10925206,128.44,128.43,0.04955645]
[1742523379177,7.7926,128.41,128.39,38.79905206]
[1742523379685,7.7916,128.42,128.39,38.79905206]
[1742523380281,7.7921,128.41,128.39,46.59205206]
[1742523380479,7.7921,128.41,128.39,38.79905206]
[1742523380672,0.05236275,128.42,128.39,11.31905206]
[1742523380874,7.792,128.41,128.39,11.31905206]
[1742523382381,0.05236275,128.42,128.39,11.31905206]
[1742523382879,7.7924,128.41,128.39,11.31905206]
[1742523383680,7.7924,128.41,128.39,19.11225206]
[1742523385883,7.7924,128.41,128.39,11.31905206]
[1742523386782,7.7924,128.41,128.39,19.11195206]
[1742523387086,7.7924,128.41,128.39,11.31905206]
[1742523388575,7.7926,128.4,128.39,11.31905206]
[1742523390083,7.7926,128.4,128.38,19.11285206]
[1742523390279,7.7924,128.41,128.39,11.31905206]
[1742523391081,7.84416275,128.42,128.39,19.11195206]
[1742523391378,0.05236275,128.42,128.4,11.31905206]
[1742523391585,0.05236275,128.42,128.41,11.31905206]
[1742523391880,0.05236275,128.42,128.41,19.11105206]
[1742523394581,207.0,128.41,128.31,64.4036075]
[1742523394878,11.31905206,128.37,128.31,75.72265956]
[1742523395072,11.31905206,128.37,128.31,53.82601967]
[1742523395073,28.36,128.36,128.31,53.82601967]
[1742523395278,28.36,128.36,128.34,10.6267419]
[1742523395680,7.796,128.35,128.34,10.6267419]
[1742523396384,36.1551,128.36,128.34,10.6267419]
[1742523396791,7.7957,128.35,128.34,10.6267419]
[1742523398986,7.7963,128.34,128.28,264.9195]
[1742523399392,0.05307838,128.33,128.28,264.9195]
[1742523399690,7.85027838,128.33,128.28,264.9195]
[1742523401394,7.85027838,128.33,128.29,52.24972037]
[1742523403294,7.7976,128.32,128.29,52.24972037]
[1742523403489,0.05307838,128.33,128.29,34.5331]
[1742523403896,7.7987,128.3,128.29,34.5331]
[1742523405791,7.7987,128.3,128.29,4.0461]
[1742523406892,7.7993,128.29,128.28,257.12]
[1742523407098,28.3,128.33,128.28,257.12]
[1742523407305,0.05752519,128.3,128.28,257.12]
[1742523412804,0.05752519,128.3,128.28,264.9199]
[1742523413104,0.05752519,128.3,128.28,257.12]
[1742523414099,0.05752519,128.3,128.28,264.9199]
[1742523416902,0.05752519,128.3,128.28,257.12]
[1742523417097,0.05752519,128.3,128.27,39.52557439]
[1742523417298,0.05752519,128.3,128.27,35.9805]
[1742523418902,11.40309958,128.3,128.27,28.18]
[1742523419102,7.7995,128.29,128.26,12.1507]
[1742523419300,11.40309958,128.3,128.26,4.3496]
[1742523419703,7.85652519,128.3,128.27,7.8002]
[1742523420406,0.05752519,128.3,128.28,7.7998]
[1742523421105,7.85622519,128.3,128.27,7.8002]
[1742523421710,7.85622519,128.3,128.28,7.7999]
[1742523421904,0.05752519,128.3,128.27,11.34557439]
[1742523422109,0.05752519,128.3,128.28,11.34557439]
[1742523422310,0.05752519,128.3,128.29,7.7993]
[1742523425305,0.05752519,128.3,128.29,19.14487439]
[1742523425600,0.00845854,128.3,128.29,19.14487439]
[1742523428106,0.00845854,128.3,128.28,28.19328858]
[1742523428107,11.35403293,128.3,128.28,0.05328858]
[1742523428304,39.56557439,128.29,128.28,0.05328858]
[1742523428707,47.36487439,128.29,128.28,0.05328858]
[1742523436219,36.0193,128.29,128.28,0.05328858]
[1742523441722,7.7993,128.29,128.28,0.05328858]
[1742523441922,7.80745854,128.3,128.28,0.05328858]
[1742523442526,7.80745854,128.3,128.28,11.39886297]
[1742523442823,7.7993,128.29,128.28,0.05328858]
[1742523444622,19.14487439,128.29,128.28,0.05328858]
[1742523445919,7.7993,128.29,128.28,0.05328858]
[1742523446121,19.15303293,128.3,128.28,0.05328858]
[1742523446319,7.80745854,128.3,128.28,0.05328858]
[1742523448422,0.00845854,128.3,128.28,7.85318858]
[1742523453631,0.00845854,128.3,128.29,7.7993]
[1742523453834,0.00845854,128.3,128.28,0.05328858]
[1742523454229,11.34557439,128.29,128.28,0.05328858]
[1742523455233,19.14487439,128.29,128.28,0.05328858]
[1742523459129,7.8014,128.26,128.23,265.0628]
[1742523459334,28.0,128.28,128.23,268.60557439]
[1742523459729,35.8002,128.28,128.24,7.802]
[1742523460339,0.05555754,128.27,128.24,7.802]
[1742523460837,7.85615754,128.27,128.23,268.60557439]
[1742523461835,0.05555754,128.27,128.23,276.40857439]
[1742523462035,0.05555754,128.27,128.23,268.60557439]
[1742523462222,7.8018,128.25,128.23,268.60557439]
[1742523462425,0.05555754,128.27,128.23,268.60557439]
[1742523462831,7.8019,128.25,128.23,268.60557439]
[1742523463237,7.803,128.23,128.21,6.2973]
[1742523463438,7.803,128.23,128.2,11.34557439]
[1742523463735,7.85635793,128.23,128.2,19.15037439]
[1742523463924,7.85635793,128.23,128.17,69.72745253]
[1742523463925,11.34557439,128.21,128.17,67.69065253]
[1742523464130,11.34557439,128.2,128.17,65.61545253]
[1742523464440,39.46557439,128.19,128.18,10.6267419]
[1742523464830,47.27097439,128.19,128.18,10.6267419]
[1742523465034,39.46557439,128.19,128.17,116.89416094]
[1742523465236,11.34557439,128.18,128.17,116.89416094]
[1742523465430,19.15157439,128.18,128.17,116.89416094]
[1742523466441,19.15157439,128.18,128.17,113.59696094]
[1742523466629,7.8066,128.17,128.16,120.81846966]
[1742523466832,19.15217439,128.17,128.16,120.81846966]
[1742523468638,19.15217439,128.17,128.11,11.34557439]
[1742523468836,39.46557439,128.16,128.11,11.34557439]
[1742523469028,0.05734002,128.15,128.11,11.34557439]
[1742523473843,0.05734002,128.15,128.12,11.34557439]
[1742523478447,0.05734002,128.15,128.12,19.15517439]
[1742523479359,11.34557439,128.13,128.08,11.34557439]
[1742523479552,28.3,128.12,128.08,11.34557439]
[1742523479853,28.35838385,128.12,128.1,7.8105]
[1742523480358,0.05838385,128.12,128.11,7.8103]
[1742523482655,0.05838385,128.12,128.11,19.15587439]
[1742523482857,28.3,128.16,128.14,7.8084]
[1742523483161,28.3,128.16,128.12,11.34557439]
[1742523483355,28.3,128.16,128.13,11.34557439]
[1742523483961,28.35722318,128.16,128.13,11.39737165]
[1742523484157,11.34557439,128.15,128.13,0.05179726]
[1742523484555,11.34557439,128.15,128.14,7.8084]
[1742523485063,39.70279757,128.16,128.14,7.8084]
[1742523485458,11.40279757,128.16,128.15,7.8078]
[1742523485659,28.37722318,128.16,128.15,7.8078]
[1742523485862,0.05722318,128.16,128.15,7.8078]
[1742523493967,0.05722318,128.16,128.13,0.05179726]
[1742523493968,0.05722318,128.16,128.14,7.8083]
[1742523494968,0.05722318,128.16,128.13,7.86059726]
[1742523495564,0.05722318,128.16,128.13,11.39737165]
[1742523495769,0.05722318,128.16,128.14,11.34557439]
[1742523496465,0.05722318,128.16,128.15,7.8078]
[1742523496665,0.05722318,128.16,128.15,9.8014]
[1742523498670,0.05722318,128.16,128.15,1.9936]
[1742523499371,28.22,128.19,128.15,13.33917439]
[1742523500068,36.0258,128.19,128.16,7.8069]
[1742523500271,7.8058,128.19,128.16,7.8069]
[1742523500659,0.05015272,128.19,128.17,7.8066]
[1742523501668,257.62,128.23,128.18,11.34557439]
[1742523501669,11.34557439,128.22,128.18,11.34557439]
[1742523501871,28.2,128.22,128.18,11.34557439]
[1742523502264,36.0038,128.22,128.18,11.34557439]
[1742523502771,7.8043,128.21,128.19,7.8051]
[1742523502961,7.85737363,128.21,128.19,0.05028717]
[1742523505472,0.05307363,128.21,128.19,7.85568717]
[1742523505669,11.34557439,128.25,128.2,11.34557439]
[1742523505972,11.34557439,128.26,128.22,7.8035]
[1742523506171,43.04780517,128.27,128.21,11.34557439]
[1742523506172,43.04780517,128.27,128.23,11.34557439]
[1742523506367,11.34557439,128.26,128.21,297.10557439]
[1742523506571,11.34557439,128.25,128.21,257.58]
[1742523506872,11.39758781,128.24,128.22,0.05378636]
[1742523507274,0.05201342,128.24,128.22,0.05378636]
[1742523508278,0.05201342,128.24,128.22,7.85688636]
[1742523508576,0.05201342,128.24,128.22,11.39936075]
[1742523508779,0.05201342,128.24,128.22,13.43456075]
[1742523509472,0.05201342,128.24,128.23,7.803]
[1742523510267,11.34557439,128.32,128.23,39.58557439]
[1742523510466,54.39337956,128.33,128.28,11.34557439]
[1742523510777,7.7979,128.32,128.3,11.34557439]
[1742523511073,7.7979,128.32,128.28,28.28]
[1742523511074,22.10476042,128.32,128.28,28.28]
[1742523511271,7.7985,128.31,128.28,28.28]
[1742523511470,0.05267765,128.31,128.29,0.0524049]
[1742523512472,0.05267765,128.31,128.29,11.39797929]
[1742523513577,0.05267765,128.31,128.29,19.19697929]
[1742523513879,0.05267765,128.31,128.29,21.24607929]
[1742523514073,0.05267765,128.31,128.29,13.44707929]
[1742523515071,7.85127765,128.31,128.29,13.44707929]
[1742523515277,0.05267765,128.31,128.29,13.44707929]
[1742523515873,7.7987,128.3,128.29,2.1015049]
[1742523516178,7.7987,128.3,128.29,0.0524049]
[1742523516480,19.14427439,128.3,128.29,0.0524049]
[1742523516871,47.44427439,128.3,128.29,0.0524049]
[1742523517481,36.0987,128.3,128.29,0.0524049]
[1742523519174,7.7987,128.3,128.29,0.0524049]
[1742523520080,0.05267765,128.31,128.29,0.0524049]
[1742523520878,0.05267765,128.31,128.29,11.39797929]
[1742523521275,0.05267765,128.31,128.3,11.34557439]
[1742523522387,0.05267765,128.31,128.29,11.39797929]
[1742523522986,0.05267765,128.31,128.29,19.19727929]
[1742523523181,0.05267765,128.31,128.3,11.34557439]
[1742523523381,0.05267765,128.31,128.3,13.34017439]
[1742523523580,11.34557439,128.37,128.3,13.34017439]
[1742523523883,28.26,128.36,128.32,11.34557439]
[1742523524280,11.34557439,128.35,128.3,13.34017439]
[1742523524487,11.34557439,128.34,128.3,13.34017439]
[1742523524788,11.39959592,128.34,128.31,0.05297492]
[1742523525187,7.7978,128.32,128.31,0.05297492]
[1742523529692,19.14337439,128.32,128.31,0.05297492]
[1742523538090,19.14337439,128.32,128.31,7.492e-05]
[1742523540400,7.7978,128.32,128.31,7.492e-05]
[1742523542489,35.9178,128.32,128.31,7.492e-05]
[1742523543100,47.26337439,128.32,128.31,7.492e-05]
[1742523544395,35.9178,128.32,128.31,7.492e-05]
[1742523547903,47.26337439,128.32,128.31,7.492e-05]
[1742523551206,35.9178,128.32,128.31,7.492e-05]
[1742523555608,11.39959592,128.34,128.31,7.492e-05]
[1742523555802,27.98,128.33,128.31,11.34564931]
[1742523556509,7.85062153,128.34,128.31,11.34564931]
[1742523556710,28.05402153,128.34,128.32,7.7975]
[1742523557007,0.05402153,128.34,128.32,7.7975]
[1742523557612,0.05402153,128.34,128.31,13.39494931]
[1742523557912,7.85042153,128.34,128.31,13.39494931]
[1742523558105,7.85042153,128.34,128.31,2.04937492]
[1742523558305,7.85042153,128.34,128.31,9.84717492]
[1742523558905,7.797,128.33,128.31,9.84717492]
[1742523559106,7.797,128.33,128.31,2.04937492]
[1742523559812,11.34557439,128.33,128.31,7.492e-05]
[1742523560207,7.7975,128.32,128.31,7.492e-05]
[1742523564218,47.10307439,128.32,128.31,7.492e-05]
[1742523564927,35.7575,128.32,128.31,7.492e-05]
[1742523567230,27.96,128.32,128.31,7.492e-05]